Cogmind - Beta 15 @@@ ROGUE MODE // 2025.07.23 @ 08:27:46 Player: AshCrow Result: Core destroyed Performance ------------- Evolutions (0) 0 Regions Visited (2) 400 Robots Destroyed (12) 60 Value Destroyed (208) 208 Prototype IDs (2) 40 Alien Tech Used (0) 0 Bonus (0) 0 TOTAL SCORE: 708 Bonus ------- None Cogmind --------- Core Integrity 0/250 Matter 300/300 Energy 100/100 System Corruption 0% Temperature Cool (6) Movement Core (100) Ox1 Location -10/Subcaves Parts ------- > --- POWER (1) -------- (None) > --- PROPULSION (2) --- (None) > --- UTILITY (2) ------ Small Storage Unit Hacking Suite > --- WEAPON (2) ------- (None) > --- INVENTORY (8) ---- Wheel Wheel Flight Unit Flight Unit Heat Sink Medium Storage Unit Datajack Peak State ------------ > --- POWER ------------ Light Nuclear Core > --- PROPULSION ------- Aluminum Leg Aluminum Leg > --- UTILITY ---------- Small Storage Unit Sensor Array > --- WEAPON ----------- Assault Rifle Assault Rifle > --- INVENTORY -------- Light Ion Engine Light Ion Engine Wheel Wheel Flight Unit Hacking Suite Medium Laser Datajack [Rating: 10] Favorites ----------- Power Light Ion Engine Engine Light Ion Engine Power Core Light Nuclear Core Propulsion Aluminum Leg Leg Aluminum Leg Utility Small Storage Unit Device Sensor Array Storage Small Storage Unit Processor Terrain Scan Processor Hackware Hacking Suite Weapon Assault Rifle Energy Gun Small Laser Ballistic Gun Assault Rifle Build | -11 -10 -10 ------- Run | Yrd Mat Sub Slots Evolved . | . . . Power . | . . . Propulsion . | . . . Utility . | . . . Weapon . | . . . Parts Attached 21 | 7 14 . Power 3 | 1 2 . Engine 2 | 1 1 . Core 1 | . 1 . Reactor . | . . . Propulsion 4 | 2 2 . Treads . | . . . Leg 4 | 2 2 . Wheel . | . . . Hover . | . . . Flight . | . . . Utility 5 | 1 4 . Device 2 | . 2 . Storage 1 | 1 . . Processor 1 | . 1 . Hackware 1 | . 1 . Protection . | . . . Artifact . | . . . Weapon 9 | 3 6 . Energy Gun 3 | 1 2 . Energy Cannon . | . . . Ballistic Gun 6 | 2 4 . Ballistic Cannon . | . . . Launcher . | . . . Special Weapon . | . . . Impact Weapon . | . . . Slashing Weapon . | . . . Piercing Weapon . | . . . Special Melee Weapon . | . . . Unidentified Prototypes . | . . . Parts Lost 11 | . 6 5 Power 2 | . 1 1 Propulsion 4 | . 2 2 Utility 1 | . 1 . Weapon 4 | . 2 2 Highest Loss Streak 5 | . 2 5 To Critical Strikes . | . . . Average Backups 5 | . 5 7 Power 1 | . 1 . Propulsion 2 | . 2 4 Utility . | . . 2 Weapon . | . . . Tool/Special . | . . . Unused Backups 7 | . 1 6 Power . | . . . Propulsion 4 | . . 4 Utility 1 | . . 1 Weapon 1 | . 1 . Tool/Special 1 | . . 1 Average Slot Usage (%) 94 | . 95 92 Engine 6 | . 4 13 Core 6 | . 8 . Leg 25 | . 25 25 Device 8 | . 11 . Storage 14 | . 14 14 Processor 1 | . 1 . Hackware 3 | . . 14 Energy Gun 4 | . 2 12 Ballistic Gun 21 | . 24 11 Peak Build Rating 10 | 6 10 9 Average Rating 8 | 4 8 8 On Entrance 5 | . 6 9 Naked Turns . | . . . Heaviest Build 15 | 12 15 10 Greatest Support 20 | 20 20 20 Greatest Overweight (x) 1 | . 1 1 Average Overweight (x) . | . . . Largest Inventory Capacity 8 | 8 8 8 Average Capacity 7 | 7 8 8 Most Carried 8 | 1 8 7 Average Carried 5 | . 5 7 Final Capacity 8 | 8 8 8 Final Carried 7 | 1 7 7 Class Distribution -------------------- 75% | Mutant 24% | Scavenger-Mutant Dominant Class ---------------- Mutant | -10/Materials Scavenger-Mutant | -10/Subcaves Resources | -11 -10 -10 ----------- Run | Yrd Mat Sub Matter Collected 511 | 254 257 . Remotely . | . . . Salvage Created 287 | . 287 . Parts 20 | . 20 . Haulers Intercepted . | . . . Recyclers Shooed . | . . . Parts Field Recycled . | . . . Retrieved Matter . | . . . Parts Self-Destructed . | . . . Prevented . | . . . Kills | -11 -10 -10 ------- Run | Yrd Mat Sub Combat Hostiles Destroyed 9 | . 9 . Guns 9 | . 9 . Classes Destroyed 5 | . 5 . Worker 1 | . 1 . Operator 1 | . 1 . Watcher 1 | . 1 . Swarmer 6 | . 6 . Grunt 3 | . 3 . Best Kill Streak 4 | . 4 . Combat Bots Only 3 | . 3 . Max Kills in Single Turn 2 | . 2 . Gunslinging 1 | . 1 . Exploded . | . . . Melee . | . . . Uniques/NPCs Destroyed . | . . . Combat | -11 -10 -10 -------- Run | Yrd Mat Sub Hostile Shots Fired 83 | . 69 14 Missed 25 | . 21 4 Hits 58 | . 48 10 Projectile 58 | . 48 10 AOE 5 | . 1 4 Damage Taken 1058 | . 698 360 Core 251 | . 144 107 Absorbed by Shields . | . . . Core Remaining (%) 100 | 100 . . Volleys Fired 47 | . 44 3 Largest 2 | . 2 2 Hottest 60 | . 60 60 Shots Fired 74 | . 70 4 Gun 74 | . 70 4 Cannon . | . . . Launcher . | . . . Special . | . . . Kinetic 68 | . 67 1 Thermal 6 | . 3 3 Explosive . | . . . Electromagnetic . | . . . Robot Hit Streak 9 | . 9 3 Robot Miss Streak 6 | . 6 1 Penetration Max . | . . . Secondary Targets 2 | . 2 . Max Gunslinging Chain 1 | . 1 . Shots Hit Robots 42 | . 39 3 Core Hits 22 | . 19 3 Critical Kills . | . . . Critical Parts Destroyed . | . . . Critical Strikes . | . . . Melee Attacks . | . . . Impact . | . . . Slashing . | . . . Piercing . | . . . Sneak Attacks . | . . . Combat Hostiles . | . . . Follow-up Attacks . | . . . Damage Inflicted 527 | . 474 53 Guns 498 | . 470 28 Cannons . | . . . Explosions . | . . . Melee . | . . . Ramming 29 | . 4 25 Kinetic 454 | . 448 6 Thermal 44 | . 22 22 Explosive . | . . . Electromagnetic . | . . . Impact . | . . . Slashing . | . . . Piercing . | . . . Highest Corruption . | . . . Average Corruption . | . . . Corruption Purged . | . . . Corruption Blocked . | . . . Overload Shots . | . . . Overflow Damage . | . . . Projectiles . | . . . Explosions . | . . . Melee . | . . . Knockbacks 1 | . 1 . Impact 1 | . 1 . Kinetic . | . . . Secondary . | . . . Self-Inflicted Damage 3 | . . 3 Shots . | . . . Rammed 2 | . . 2 Targets Rammed 14 | . 3 11 Kicked 12 | . 3 9 Crushed . | . . . Highest Temperature 54 | . 54 . Average Temperature 7 | . 7 . Received Heat Transfer 258 | . 216 42 Siege Activations . | . . . Martial Activations . | . . . Shielding Activations . | . . . Robots Disrupted . | . . . Combat Hostiles . | . . . Robots Corrupted . | . . . Combat Hostiles . | . . . Parts Fried . | . . . Impact Corruptions . | . . . Robots Melted . | . . . Combat Hostiles . | . . . Parts Melted . | . . . Heat Transferred 100 | . 50 50 Parts Sabotaged . | . . . Parts Stolen . | . . . Parts Stripped . | . . . Power Chain Reactions . | . . . Alert | -11 -10 -10 ------- Run | Yrd Mat Sub Maximum Alert Level . | . . . Low Security (%) 100 | 100 100 . Level 1 . | . . . Level 2 . | . . . Level 3 . | . . . Level 4 . | . . . Level 5 . | . . . High Security . | . . . Max Security . | . . . Peak Influence 75 | . 75 . Initial . | . . . Average 20 | . 21 . Influence Increases 271 | . 271 . Destroy 0b10 Robot/C 180 | . 180 . Destroy 0b10 Robot/NC 15 | . 15 . Destroy Leader 42 | . 42 . Successful Hack 4 | . 4 . Lose Combat Pursuer 30 | . 30 . Influence Decreases 271 | . 240 31 Entered New Map 15 | . . 15 Time Decay 207 | . 191 16 Lost Part 49 | . 49 . Squads Dispatched 2 | . 2 . Investigation . | . . . Extermination . | . . . Reinforcement 2 | . 2 . Assault . | . . . Garrison . | . . . Intercept . | . . . Searches Triggered . | . . . Construction Impeded . | . . . Haulers Reinforced . | . . . Active Scanning Responses . | . . . Cargo Convoy Interrupts . | . . . Stealth | -11 -10 -10 --------- Run | Yrd Mat Sub Distress Signals 1 | . 1 . Communications Jammed . | . . . Distress Signals . | . . . Times Spotted 19 | . 17 2 Peak Tracking Total 4 | . 4 2 Tactical Retreats 2 | . 2 . Traps | -11 -10 -10 ------- Run | Yrd Mat Sub Traps Triggered . | . . . Indirectly . | . . . Trap Hack Attempts . | . . . Triggered . | . . . Disarmed . | . . . Reprogrammed . | . . . Reused . | . . . Traps Extracted . | . . . Installed . | . . . Triggered . | . . . Machines | -11 -10 -10 ---------- Run | Yrd Mat Sub Machines Disabled . | . . . Max in Single Turn . | . . . Machines Repaired . | . . . Machines Dismantled . | . . . Machines Sabotaged . | . . . Overloaded Fab Kills . | . . . Hacking | -11 -10 -10 --------- Run | Yrd Mat Sub Machines Accessed 1 | . 1 . Terminals 1 | . 1 . Fabricators . | . . . Repair Stations . | . . . Recycling Units . | . . . Scanalyzers . | . . . Garrison Access . | . . . Total Hacks 1 | . 1 . Successful 1 | . 1 . Failed . | . . . Catastrophic . | . . . Database Lockouts . | . . . Manual . | . . . Terminals 1 | . 1 . Fabricators . | . . . Repair Stations . | . . . Recycling Units . | . . . Scanalyzers . | . . . Garrison Access . | . . . Terminal Hacks 1 | . 1 . Prototype ID Bank 1 | . 1 . Fabricator Hacks . | . . . Repair Station Hacks . | . . . Recycling Unit Hacks . | . . . Scanalyzer . | . . . Garrison Access Hacks . | . . . Unauthorized Hacks . | . . . Terminals . | . . . Fabricators . | . . . Repair Stations . | . . . Recycling Units . | . . . Scanalyzers . | . . . Garrison Access . | . . . Data Cores Recovered . | . . . Used . | . . . Hacking Detections 1 | . 1 . Full Trace Events . | . . . Feedback Events . | . . . Feedback Blocked . | . . . Robot Schematics Acquired . | . . . Robots Built . | . . . Authchips . | . . . Time . | . . . Total Robot Build Rating . | . . . Part Schematics Acquired . | . . . Parts Built . | . . . Authchips . | . . . Time . | . . . Total Part Build Rating . | . . . Parts Repaired . | . . . Time . | . . . Parts Recycled . | . . . Recycled Matter . | . . . Retrieved Matter . | . . . Retrieved Components . | . . . Parts Scanalyzed . | . . . Part Schematics Acquired . | . . . Parts Damaged . | . . . Bothacking | -11 -10 -10 ------------ Run | Yrd Mat Sub Used RIF Installer . | . . . Robots Hacked . | . . . Non-combat . | . . . Combat . | . . . Robot Hacks Applied . | . . . Relay Couplers Released . | . . . Fabnet Peak Effective % . | . . . Robots Rewired . | . . . Allies Hacked . | . . . Hacks Repelled . | . . . Allies | -11 -10 -10 -------- Run | Yrd Mat Sub Total Allies . | . . . Largest Group . | . . . Highest-Rated Group . | . . . Highest-Rated Ally . | . . . Total Orders . | . . . Ally Attacks . | . . . Total Damage . | . . . Kills . | . . . Allies Corrupted . | . . . Allies Melted . | . . . Intel | -11 -10 -10 ------- Run | Yrd Mat Sub Active Infowar (turns) 569 | . 569 . Sensors 569 | . 569 . Robot Analysis Total . | . . . Derelict Logs Recovered . | . . . Drone Launches . | . . . Drone Recoveries . | . . . Exploration | -11 -10 -10 ------------- Run | Yrd Mat Sub Turns Passed 963 | 54 715 194 Spaces Moved 493 | 40 328 125 Core 11 | 7 . 4 Treads . | . . . Legs 482 | 33 328 121 Wheels . | . . . Hover . | . . . Flight . | . . . Fastest Speed 50 | 50 120 100 Average Speed 123 | 107 127 119 Slowest Speed 190 | 120 190 120 Overloaded Moves . | . . . Propulsion Burnouts . | . . . Robots Hopped . | . . . Potential Cave-ins . | . . . Cave-ins Triggered . | . . . Exploration Rate (%) 24 | 4 57 12 Regions Visited 2 Branch Regions 1 Pre-discovered Areas . | . . . Known Exits Taken . | . . . Unknown Exits Taken 2 | 1 1 . Scrap Searched . | . . . Spaces Dug . | . . . Terrain Destroyed . | . . . Melee . | . . . Projectile . | . . . AOE . | . . . Terrain Rammed . | . . . Walls Destroyed . | . . . Machines Disabled . | . . . Actions | -11 -10 -10 --------- Run | Yrd Mat Sub Total 771 | 47 560 164 Wait 182 | . 156 26 Move 491 | 39 327 125 Hop . | . . . Pick Up 10 | 1 9 . Fast Attach 12 | 6 6 . Attach 1 | . 1 . Detach . | . . . Swap 8 | 1 7 . Drop 7 | . 7 . Fire 47 | . 44 3 Melee . | . . . Ram 1 | . . 1 Kick 12 | . 3 9 Crush . | . . . Escape Stasis . | . . . Rewire . | . . . Trap . | . . . Miscellaneous . | . . . Route ------- -11/Scrapyard -10/Materials (discovered 2 exits: [*Mat] / [*Sub]) -10/Subcaves History --------- Turn | Location | Event 6 | -11/Scrapyard | Discovered new exit (range 14) 55 | -11/Scrapyard | Entered Materials 314 | -10/Materials | Build established: Mutant 680 | -10/Materials | Discovered new exit (range 16) 709 | -10/Materials | Core integrity fell below 50% 746 | -10/Materials | Discovered new exit (range 6) 770 | -10/Materials | Entered Subcaves 935 | -10/Subcaves | Disturbed a concealed Subdweller 936 | -10/Subcaves | Ambushed by Subdweller buried in earth 942 | -10/Subcaves | Core integrity fell below 20% 964 | -10/Subcaves | Core destroyed Last Messages --------------- AU-Y5F(R) angrily emerges from the Twisted Machinery. Aluminum Leg destroyed. Lgt. Assault Rifle destroyed. 6D-UN8(R): "ARGHSUB!" Sml. Laser destroyed. Kicked AU-Y5F(R). AU-Y5F(R) destroyed. Kicked 6D-UN8(R). 6D-UN8(R) affixes Scrap Shield Fragment to Scrap Shield. Kicked 6D-UN8(R). Lgt. Ion Engine destroyed. Kicked 6D-UN8(R). Aluminum Leg destroyed. Slammed into 6D-UN8(R). 6D-UN8(R) affixes Scrap Shield Fragment to Scrap Shield. Slammed into 6D-UN8(R). Destabilizing: Core damaged (-5). Map ----- +----------------------------------------------------+ | ?????????????????????????????????????????????????? | | ?????????????????????????????????????????????????? | | ?????????????????????????????????????????????????? | | ?????????????????????????????????????????????????? | | ?????????????????????????????????????????????????? | | ?????????????????????????????????????????????????? | | ?????????????????????????????????????????????????? | | ?????????????????????????????????????????????????? | | ?????????????????????????????????????????????????? | | ?????????????????????????????????????????????????? | | ?????????????????????????????????????????????????? | | ?????????????????????????????????????????????????? | | ?????????????????????????????????????????????????? | | ?????????????????????????????????????????????????? | | ?????????????????????????????????????????????????? | | ?????????????????????????????????????????????????? | | ?????????????????????????????????????????????????? | | ?????????????????????????????????????????????????? | | ???????????????????????####??????????????????????? | | ???????????????????##### ####???????????????????? | | ???????????????????# #???????????????????? | | ???????????????????# ##??????????????????? | | ???????????????????# #??????????????????? | | ???????????????????# #??????????????????? | | ??????????????#???## % #??????????????????? | | ??????????????# ?# @%% #??????????????????? | | ??????????????# ## R%%%##??????????????????? | | ?????????????## # % % #??????????????? #??? | | ?????????????# #?????????????? #??? | | ?????????????# ###????????????? #??? | | ?????????????## ###??????????? ##?? | | ??????????????# ##????????# #?? | | ??????????????# ##???????# #?? | | ??????????????# ######??# ##? | | ??????????????# ## #### ## | | ?????????????# ##?## ## | | ?????????????## ????### ## | | ??????????????# ???????## #### | | ??????????????## ?????????####??# ## ## | | ??????????????????????????###???#### ## | | ??????????????????????????# ###?## | | ??????????????????????????# ### | | ??????????????????????????# ## | | ?????????????????????????## ### | | ?????????????????????????# ### ### | | ?????????????????????????# #?######## | | ?????????????????????????## #???????## ### | | ??????????????????????????###????#### ####?## | | ???????????????????????????####### #?????## | | ???????????????????????????# ## #??????# | +----------------------------------------------------+ Best States ------------- Heat Dissipation 35 Energy Generation 14 Energy Capacity 160 Matter Stores 300 Matter Capacity 300 Sight Range 16 Robot Scan Range 14 Terrain Scan Density 85 Evasion (%) 55 Offensive Hacking 10 Item Schematics ----------------- None Robot Schematics ------------------ None Fabricated ------------ Nothing Repaired ---------- Nothing Alien Tech Used ----------------- None Achievements -------------- None Challenges ------------ None Game ------ Seed CoolingTractorDisintegrator Manual? 0 Play Time 00:13:55 Cumulative 30.5 hours Start 2025.07.23 @ 08:05:15 End 2025.07.23 @ 08:27:46 Sessions 1 Manual Loads 0 Difficulty Rogue Special Mode None Game No. 53 Rogue 53 Adventurer 0 Explorer 0 Win Type - Total 0 Types 0/0/0/0/0/0/0/0/0/0 Lore% 22 Gallery% 25 Achievement% 26 Wizard Run 0 Options --------- Layout 1 ASCII 0 Keyboard 1 Movement Numpad Keybinds 0 Fullscreen 1 Font 24/Smallcaps Map View 50x40 Zoom Use 0% Tactical HUD 0 Map Filters NONE Filters NONE Steam 1 RUN: d33d1344-fea4-4da1-bdc5-75ab3aff17d2